fUSD/lending_fUSD_20240420
["ID","MTS","AMOUNT","RATE_DAILY","PERIOD"]
[323028272,1713603056600,-500.0,0.00015616,2]
[323028273,1713603056611,-500.0,0.00015616,2]
[323028274,1713603056622,-500.0,0.00015616,2]
[323028275,1713603056632,-500.0,0.00015616,2]
[323028276,1713603056642,-500.0,0.00015616,2]
[323028277,1713603056652,-500.0,0.00015616,2]
[323028278,1713603056662,-638.53,0.00015616,2]
[323028279,1713603056671,-1024.1,0.00015616,2]
[323028280,1713603056681,-500.0,0.00015616,2]
[323028281,1713603056690,-547.28,0.00015616,2]
[323028282,1713603056701,-500.0,0.00015616,2]
[323028283,1713603056710,-500.0,0.00015616,2]
[323028284,1713603056719,-732.91,0.00015616,2]
[323028285,1713603056728,-500.0,0.00015616,2]
[323028286,1713603056738,-500.0,0.00015616,2]
[323028287,1713603056747,-500.0,0.00015616,2]
[323028288,1713603056756,-500.0,0.00015616,2]
[323028289,1713603056766,-500.0,0.00015616,2]
[323028290,1713603056775,-500.0,0.00015616,2]
[323028291,1713603056784,-500.0,0.00015616,2]
[323028292,1713603056794,-500.0,0.00015616,2]
[323028293,1713603056803,-646.94,0.00015616,2]
[323028294,1713603056812,-500.0,0.00015616,2]
[323028295,1713603056822,-246.7,0.00015616,2]
[323028296,1713603056831,-500.0,0.00015616,2]
[323028297,1713603056840,-500.0,0.00015616,2]
[323028298,1713603056849,-500.0,0.00015616,2]
[323028299,1713603056859,-500.0,0.00015616,2]
[323028300,1713603056868,-661.5,0.00015616,2]
[323028301,1713603056877,-500.0,0.00015616,2]
[323028302,1713603056885,-529.98,0.00015616,2]
[323028303,1713603056895,-573.08245195,0.00015616,2]
[323028304,1713603056904,-836.71,0.00015616,2]
[323028305,1713603056913,-500.0,0.00015616,2]
[323028306,1713603056923,-509.73,0.00015616,2]
[323028307,1713603056932,-500.0,0.00015616,2]
[323028308,1713603056941,-500.0,0.00015616,2]
[323028309,1713603056951,-576.28,0.00015616,2]
[323028310,1713603056960,-500.0,0.00015616,2]
[323028311,1713603056970,-523.25958816,0.00015616,2]
[323028312,1713603056979,-500.0,0.00015616,2]
[323028313,1713603056988,-500.0,0.00015616,2]
[323028314,1713603056998,-500.0,0.00015616,2]
[323028315,1713603057007,-791.34,0.00015616,2]
[323028316,1713603057016,-500.0,0.00015616,2]
[323028317,1713603057026,-797.83,0.00015616,2]
[323028318,1713603057035,-500.0,0.00015616,2]
[323028319,1713603057047,-500.0,0.00015616,2]
[323028320,1713603057056,-500.0,0.00015616,2]
[323028321,1713603057065,-500.0,0.00015616,2]
[323028322,1713603057075,-500.0,0.00015616,2]
[323028323,1713603057084,-500.0,0.00015616,2]
[323028324,1713603057093,-500.0,0.00015616,2]
[323028325,1713603057103,-509.12,0.00015616,2]
[323028326,1713603057112,-500.0,0.00015616,2]
[323028327,1713603057121,-500.0,0.00015616,2]
[323028328,1713603057130,-500.0,0.00015616,2]
[323028329,1713603057139,-500.0,0.00015616,2]
[323028330,1713603057149,-585.88,0.00015616,2]
[323028331,1713603057158,-561.38,0.00015616,2]
[323028332,1713603057167,-651.15,0.00015616,2]
[323028333,1713603057176,-500.0,0.00015616,2]
[323028334,1713603057185,-500.0,0.00015616,2]
[323028335,1713603057195,-500.0,0.00015616,2]
[323028336,1713603057204,-500.0,0.00015616,2]
[323028337,1713603057214,-500.0,0.00015616,2]
[323028338,1713603057223,-500.0,0.00015616,2]
[323028339,1713603057233,-693.39,0.00015616,2]
[323028340,1713603057242,-500.0,0.00015616,2]
[323028341,1713603057252,-500.0,0.00015616,2]
[323028342,1713603057261,-500.0,0.00015616,2]
[323028343,1713603057271,-500.0,0.00015616,2]
[323028344,1713603057280,-500.0,0.00015616,2]
[323028345,1713603057290,-500.0,0.00015616,2]
[323028346,1713603057300,-500.0,0.00015616,2]
[323028347,1713603057309,-500.0,0.00015616,2]
[323028348,1713603057319,-500.0,0.00015616,2]
[323028349,1713603057328,-500.0,0.00015616,2]
[323028350,1713603057337,-860.47,0.00015616,2]
[323028351,1713603057426,-500.0,0.00015616,2]
[323028352,1713603057435,-500.0,0.00015616,2]
[323028353,1713603057445,-638.7,0.00015616,2]
[323028354,1713603057455,-599.83,0.00015616,2]
[323028355,1713603057464,-500.0,0.00015616,2]
[323028356,1713603057473,-500.0,0.00015616,2]
[323028357,1713603057482,-500.0,0.00015616,2]
[323028358,1713603057492,-500.0,0.00015616,2]
[323028359,1713603057502,-500.0,0.00015616,2]
[323028360,1713603057511,-500.0,0.00015616,2]
[323028361,1713603057520,-151.0,0.00015616,2]
[323028362,1713603057529,-500.0,0.00015616,2]
[323028363,1713603057538,-655.99,0.00015616,2]
[323028364,1713603057549,-500.0,0.00015616,2]
[323028365,1713603057558,-500.0,0.00015616,2]
[323028366,1713603057566,-518.85,0.00015616,2]
[323028367,1713603057575,-500.0,0.00015616,2]
[323028368,1713603057584,-500.0,0.00015616,2]
[323028369,1713603057593,-535.36,0.00015616,2]
[323028370,1713603057603,-191.31106109,0.00015616,2]
[323028371,1713603057613,-500.0,0.00015616,2]
[323028372,1713603057624,-731.68,0.00015616,2]
[323028373,1713603057632,-500.0,0.00015616,2]
[323028374,1713603057642,-500.0,0.00015616,2]
[323028375,1713603057651,-500.0,0.00015616,2]
[323028376,1713603057659,-316.78828824,0.00015616,2]
[323028377,1713603057670,-500.0,0.00015616,2]
[323028378,1713603057679,-500.0,0.00015616,2]
[323028379,1713603057688,-151.0,0.00015616,2]
[323028380,1713603057698,-151.0,0.00015616,2]
[323028381,1713603057707,-500.0,0.00015616,2]
[323028382,1713603057717,-771.46,0.00015616,2]
[323028383,1713603057726,-500.0,0.00015616,2]
[323028384,1713603057736,-500.0,0.00015616,2]
[323028385,1713603057746,-500.0,0.00015616,2]
[323028386,1713603057755,-804.15,0.00015616,2]
[323028387,1713603057764,-500.0,0.00015616,2]
[323028388,1713603057774,-500.0,0.00015616,2]
[323028389,1713603057783,-500.0,0.00015616,2]
[323028390,1713603057792,-381.97832416,0.00015616,2]
[323028391,1713603057802,-500.0,0.00015616,2]
[323028392,1713603057811,-501.33,0.00015616,2]
[323028393,1713603057820,-500.0,0.00015616,2]
[323028394,1713603057829,-500.0,0.00015616,2]
[323028395,1713603057839,-500.0,0.00015616,2]
[323028396,1713603057849,-500.0,0.00015616,2]
[323028397,1713603057858,-510.52,0.00015616,2]
[323028398,1713603057867,-500.0,0.00015616,2]
[323028399,1713603057877,-549.13,0.00015616,2]
[323028400,1713603057887,-626.54,0.00015616,2]
[323028401,1713603057896,-500.0,0.00015616,2]
[323028402,1713603057905,-756.77,0.00015616,2]
[323028403,1713603057914,-500.0,0.00015616,2]
[323028404,1713603057923,-374.94,0.00015616,2]
[323028405,1713603057932,-217.04464693,0.00015616,2]
[323028406,1713603057941,-640.13,0.00015616,2]
[323028407,1713603057950,-151.0,0.00015616,2]
[323028408,1713603057958,-151.0,0.00015616,2]
[323028409,1713603057968,-500.0,0.00015616,2]
[323028410,1713603057977,-500.0,0.00015616,2]
[323028411,1713603057986,-500.0,0.00015616,2]
[323028412,1713603057996,-714.04,0.00015616,2]
[323028413,1713603058005,-522.17,0.00015616,2]
[323028414,1713603058014,-179.20123564,0.00015616,2]
[323028415,1713603058023,-500.0,0.00015616,2]
[323028416,1713603058032,-539.16,0.00015616,2]
[323028417,1713603058042,-500.0,0.00015616,2]
[323028418,1713603058052,-651.8,0.00015616,2]
[323028419,1713603058062,-991.15,0.00015616,2]
[323028420,1713603058070,-500.0,0.00015616,2]
[323028421,1713603058079,-500.0,0.00015616,2]
[323028422,1713603058088,-500.0,0.00015616,2]
[323028423,1713603058097,-590.02,0.00015616,2]
[323028424,1713603058106,-890.1,0.00015616,2]
[323028425,1713603058114,-500.0,0.00015616,2]
[323028426,1713603058123,-513.28,0.00015616,2]
[323028427,1713603058133,-500.0,0.00015616,2]
[323028428,1713603058142,-500.0,0.00015616,2]
[323028429,1713603058151,-500.0,0.00015616,2]
[323028430,1713603058161,-500.0,0.00015616,2]
[323028431,1713603058171,-500.0,0.00015616,2]
[323028432,1713603058180,-500.0,0.00015616,2]
[323028433,1713603058189,-500.0,0.00015616,2]
[323028434,1713603058199,-1052.51,0.00015616,2]
[323028435,1713603058207,-500.0,0.00015616,2]
[323028436,1713603058216,-151.0,0.00015616,2]
[323028437,1713603058225,-151.0,0.00015616,2]
[323028438,1713603058235,-833.0,0.00015616,2]
[323028439,1713603058244,-500.0,0.00015616,2]
[323028440,1713603058254,-530.96,0.00015616,2]
[323028441,1713603058263,-500.0,0.00015616,2]
[323028442,1713603058273,-673.25,0.00015616,2]
[323028443,1713603058283,-848.43,0.00015616,2]
[323028444,1713603058293,-500.0,0.00015616,2]
[323028445,1713603058302,-626.92,0.00015616,2]
[323028446,1713603058311,-500.0,0.00015616,2]
[323028447,1713603058321,-1432.46,0.00015616,2]
[323028448,1713603058330,-151.0,0.00015616,2]
[323028449,1713603058339,-151.0,0.00015616,2]
[323028450,1713603058348,-598.88,0.00015616,2]
[323028451,1713603058357,-1011.9,0.00015616,2]
[323028452,1713603058366,-500.0,0.00015616,2]
[323028453,1713603058375,-732.87,0.00015616,2]
[323028454,1713603058384,-500.0,0.00015616,2]
[323028455,1713603058393,-500.0,0.00015616,2]
[323028456,1713603058402,-500.0,0.00015616,2]
[323028457,1713603058411,-500.0,0.00015616,2]
[323028458,1713603058420,-436.10485617,0.00015616,2]
[323028459,1713603058429,-565.3,0.00015616,2]
[323028460,1713603058438,-500.0,0.00015616,2]
[323028461,1713603058447,-500.0,0.00015616,2]
[323028462,1713603058456,-500.0,0.00015616,2]
[323028463,1713603058465,-1474.97,0.00015616,2]
[323028464,1713603058475,-151.0,0.00015616,2]
[323028465,1713603058484,-734.08,0.00015616,2]
[323028466,1713603058493,-151.0,0.00015616,2]
[323028467,1713603058505,-500.0,0.00015616,2]
[323028468,1713603058543,-500.0,0.00015616,2]
[323028469,1713603058552,-399.177688,0.00015616,2]
[323028470,1713603058561,-399.177688,0.00015616,2]
[323028471,1713603058571,-1053.08,0.00015616,2]
[323028472,1713603058580,-1115.73,0.00015616,2]
[323028473,1713603058589,-500.0,0.00015616,2]
[323028474,1713603058598,-500.0,0.00015616,2]
[323028475,1713603058608,-399.177688,0.00015616,2]
[323028476,1713603058618,-399.177688,0.00015616,2]
[323028477,1713603058632,-629.05,0.00015616,2]
[323028478,1713603058641,-985.51,0.00015616,2]
[323028479,1713603058650,-821.46,0.00015616,2]
[323028480,1713603058660,-539.78,0.00015616,2]
[323028481,1713603058671,-500.0,0.00015616,2]
[323028482,1713603058680,-500.0,0.00015616,2]
[323028483,1713603058690,-500.0,0.00015616,2]
[323028484,1713603058699,-1415.62,0.00015616,2]
[323028485,1713603058709,-500.0,0.00015616,2]
[323028486,1713603058718,-712.12,0.00015616,2]
[323028487,1713603058728,-1202.69,0.00015616,2]
[323028488,1713603058737,-500.0,0.00015616,2]
[323028489,1713603058747,-1337.98,0.00015616,2]
[323028490,1713603058756,-852.02,0.00015616,2]
[323028491,1713603058765,-500.0,0.00015616,2]
[323028492,1713603058774,-957.98,0.00015616,2]
[323028493,1713603058784,-581.72,0.00015616,2]
[323028494,1713603058793,-500.0,0.00015616,2]
[323028495,1713603058803,-608.99,0.00015616,2]
[323028496,1713603058812,-776.29,0.00015616,2]
[323028497,1713603058821,-500.0,0.00015616,2]
[323028498,1713603058830,-601.09,0.00015616,2]
[323028499,1713603058839,-552.33,0.00015616,2]
[323028500,1713603058848,-500.0,0.00015616,2]
[323028501,1713603058857,-1354.97,0.00015616,2]
[323028502,1713603058866,-507.49,0.00015616,2]
[323028503,1713603058875,-1858.19,0.00015616,2]
[323028504,1713603058883,-168.02055603,0.00015616,2]
[323028505,1713603058892,-500.0,0.00015616,2]
[323028506,1713603058902,-500.0,0.00015616,2]
[323028507,1713603058911,-949.39,0.00015616,2]
[323028508,1713603058920,-500.0,0.00015616,2]
[323028509,1713603058930,-1450.07,0.00015616,2]
[323028510,1713603058941,-636.92,0.00015616,2]
[323028511,1713603058951,-975.01,0.00015616,2]
[323028512,1713603058961,-500.0,0.00015616,2]
[323028513,1713603058970,-500.0,0.00015616,2]
[323028514,1713603058979,-500.0,0.00015616,2]
[323028515,1713603058988,-500.0,0.00015616,2]
[323028516,1713603058997,-1142.33,0.00015616,2]
[323028517,1713603059007,-2356.75,0.00015616,2]
[323028518,1713603059015,-1486.46,0.00015616,2]
[323028519,1713603059025,-500.0,0.00015616,2]
[323028520,1713603059034,-865.59,0.00015616,2]
[323028521,1713603059042,-500.0,0.00015616,2]
[323028522,1713603059053,-153.594007,0.00015616,2]
[323028523,1713603059062,-1255.65,0.00015616,2]
[323028524,1713603059072,-500.0,0.00015616,2]
[323028525,1713603059081,-534.45,0.00015616,2]
[323028526,1713603059090,-435.07382851,0.00015616,2]
[323028527,1713603059099,-448.97,0.00015616,2]
[323028528,1713603059108,-500.0,0.00015616,2]
[323028529,1713603059117,-500.0,0.00015616,2]
[323028530,1713603059126,-500.0,0.00015616,2]
[323028531,1713603059135,-1340.38,0.00015616,2]
[323028532,1713603059145,-877.27,0.00015616,2]
[323028533,1713603059155,-1135.97,0.00015616,2]
[323028534,1713603059164,-500.0,0.00015616,2]
[323028535,1713603059173,-1186.32,0.00015616,2]
[323028536,1713603059182,-597.51,0.00015616,2]
[323028537,1713603059191,-992.23,0.00015616,2]
[323028538,1713603059201,-2212.57,0.00015616,2]
[323028539,1713603059210,-903.18,0.00015616,2]
[323028540,1713603059219,-1382.52,0.00015616,2]
[323028541,1713603059228,-514.73,0.00015616,2]
[323028542,1713603059236,-505.81,0.00015616,2]
[323028543,1713603059246,-1238.6,0.00015616,2]
[323028544,1713603059255,-2160.78,0.00015616,2]
[323028545,1713603059264,-1668.06,0.00015616,2]
[323028546,1713603059273,-151.0,0.00015616,2]
[323028547,1713603059283,-221.54744224,0.00015616,2]
[323028548,1713603059292,-151.0,0.00015616,2]
[323028549,1713603059302,-402.2317886,0.00015616,2]
[323028550,1713603059311,-746.66,0.00015616,2]
[323028551,1713603059320,-1816.36,0.00015616,2]
[323028552,1713603059329,-500.0,0.00015616,2]
[323028553,1713603059338,-500.0,0.00015616,2]
[323028554,1713603059348,-207.236803,0.00015616,2]
[323028555,1713603059357,-1369.96,0.00015616,2]
[323028556,1713603059366,-151.0,0.00015616,2]
[323028557,1713603059375,-241.718376,0.00015616,2]
[323028558,1713603059383,-500.0,0.00015616,2]
[323028559,1713603059392,-151.0,0.00015616,2]
[323028560,1713603059401,-500.0,0.00015616,2]
[323028561,1713603059410,-151.0,0.00015616,2]
[323028562,1713603059419,-1093.78,0.00015616,2]
[323028563,1713603059429,-500.0,0.00015616,2]
[323028564,1713603059438,-1467.02,0.00015616,2]
[323028565,1713603059447,-572.46,0.00015616,2]
[323028566,1713603059457,-1687.02,0.00015616,2]
[323028567,1713603059466,-623.15,0.00015616,2]
[323028568,1713603059475,-500.0,0.00015616,2]
[323028569,1713603059484,-500.0,0.00015616,2]
[323028570,1713603059493,-500.0,0.00015616,2]
[323028571,1713603059502,-547.3,0.00015616,2]
[323028572,1713603059512,-579.83,0.00015616,2]
[323028573,1713603059521,-608.87,0.00015616,2]
[323028574,1713603059530,-500.0,0.00015616,2]
[323028575,1713603059540,-500.0,0.00015616,2]
[323028576,1713603059549,-524.7,0.00015616,2]
[323028577,1713603059559,-500.0,0.00015616,2]
[323028578,1713603059568,-500.0,0.00015616,2]
[323028579,1713603059578,-500.0,0.00015616,2]
[323028580,1713603059587,-1271.21,0.00015616,2]
[323028581,1713603059596,-500.0,0.00015616,2]
[323028582,1713603059606,-5228.49,0.00015616,2]
[323028583,1713603059616,-591.33,0.00015616,2]
[323028584,1713603059628,-603.21,0.00015616,2]
[323028585,1713603059637,-253.901863,0.00015616,2]
[323028586,1713603059646,-500.0,0.00015616,2]
[323028587,1713603059657,-604.66581998,0.00015616,2]
[323028588,1713603059666,-970.48,0.00015616,2]
[323028589,1713603059675,-500.0,0.00015616,2]
[323028590,1713603059684,-836.26,0.00015616,2]
[323028591,1713603059694,-500.0,0.00015616,2]
[323028592,1713603059704,-19004.64,0.00015616,2]
[323028593,1713603059713,-604.12,0.00015616,2]
[323028594,1713603059722,-151.0,0.00015616,2]
[323028595,1713603059731,-151.0,0.00015616,2]
[323028596,1713603059740,-162.437271,0.00015616,2]
[323028597,1713603059750,-151.0,0.00015616,2]
[323028598,1713603059759,-151.0,0.00015616,2]
[323028599,1713603059768,-151.0,0.00015616,2]
[323028600,1713603059777,-843.06,0.00015616,2]
[323028601,1713603059787,-500.0,0.00015616,2]
[323028602,1713603059796,-500.0,0.00015616,2]
[323028603,1713603059806,-500.0,0.00015616,2]
[323028604,1713603059815,-500.0,0.00015616,2]
[323028605,1713603059824,-151.0,0.00015616,2]
[323028606,1713603059833,-151.0,0.00015616,2]
[323028607,1713603059842,-795.48,0.00015616,2]
[323028608,1713603059851,-500.0,0.00015616,2]
[323028609,1713603059860,-500.0,0.00015616,2]
[323028610,1713603059870,-526.49,0.00015616,2]
[323028611,1713603059879,-500.0,0.00015616,2]
[323028612,1713603059887,-966.71,0.00015616,2]
[323028613,1713603059896,-500.0,0.00015616,2]
[323028614,1713603059905,-500.0,0.00015616,2]
[323028615,1713603059914,-751.77,0.00015616,2]
[323028616,1713603059923,-500.0,0.00015616,2]
[323028617,1713603059932,-1717.29,0.00015616,2]
[323028618,1713603059941,-500.0,0.00015616,2]
[323028619,1713603059950,-500.0,0.00015616,2]
[323028620,1713603059959,-529.25,0.00015616,2]
[323028621,1713603059969,-500.0,0.00015616,2]
[323028622,1713603059978,-500.0,0.00015616,2]
[323028623,1713603059987,-500.0,0.00015616,2]
[323028624,1713603059996,-500.0,0.00015616,2]
[323028625,1713603060005,-500.0,0.00015616,2]
[323028626,1713603060014,-15276.58,0.00015616,2]
[323028627,1713603060023,-500.0,0.00015616,2]
[323028628,1713603060032,-1716.47,0.00015616,2]
[323028629,1713603060041,-500.0,0.00015616,2]
[323028630,1713603060051,-500.0,0.00015616,2]
[323028631,1713603060060,-500.0,0.00015616,2]
[323028632,1713603060069,-500.0,0.00015616,2]
[323028633,1713603060079,-500.0,0.00015616,2]
[323028634,1713603060088,-500.0,0.00015616,2]
[323028635,1713603060098,-2415.01,0.00015616,2]
[323028636,1713603060107,-1579.57258301,0.00015616,2]
[323028637,1713603060152,-40.38741699,0.00015616,2]
[323028638,1713603060162,-500.0,0.00015616,2]
[323028639,1713603060171,-837.93,0.00015616,2]
[323028640,1713603060180,-500.0,0.00015616,2]
[323028641,1713603060189,-500.0,0.00015616,2]
[323028642,1713603060199,-21501.12,0.00015616,2]
[323028643,1713603060208,-1383.89,0.00015616,2]
[323028644,1713603060217,-2176.47,0.00015616,2]
[323028645,1713603060226,-500.0,0.00015616,2]
[323028646,1713603060235,-500.0,0.00015616,2]
[323028647,1713603060245,-1627.98,0.00015616,2]
[323028648,1713603060254,-8759.07,0.00015616,2]
[323028649,1713603060263,-500.0,0.00015616,2]
[323028650,1713603060271,-303.908244,0.00015616,2]
[323028651,1713603060281,-151.0,0.00015616,2]
[323028652,1713603060290,-303.908244,0.00015616,2]
[323028653,1713603060299,-254.002731,0.00015616,2]
[323028654,1713603060308,-409.65198275,0.00015616,2]
[323028655,1713603061167,-570.86,0.00015068,2]
[323028656,1713603061178,-500.0,0.00015068,2]
[323028657,1713603061189,-570.86,0.00015342,2]
[323028658,1713603061199,-281.67137401,0.00015342,2]
[323028659,1713603061209,-90.34801725,0.00015616,2]
[323028660,1713603061219,-151.0,0.00015616,2]
[323028661,1713603061229,-500.0,0.00015616,2]
[323028662,1713603061241,-151.0,0.00015616,2]
[323028663,1713603061252,-500.0,0.00015616,2]
[323028664,1713603061264,-500.0,0.00015616,2]
[323028665,1713603061273,-322.77576437,0.00015616,2]
[323028666,1713603061286,-1515.55423563,0.00015616,2]
[323028667,1713603061296,-500.0,0.00015616,2]
[323028668,1713603061306,-2003.71,0.00015616,2]
[323028669,1713603061316,-1249.63761361,0.00015616,2]
[323028670,1713603061476,-458.19,0.00013699,2]
[323028671,1713603061486,-258.78411334,0.00015616,2]
[323028672,1713603061528,-379.93078881,0.00015616,2]
[323028673,1713603062393,-412.97748424,0.00015616,2]
[323028674,1713603062403,-303.908244,0.00015616,2]
[323028675,1713603062413,-303.908244,0.00015616,2]
[323028676,1713603062422,-500.0,0.00015616,2]
[323028677,1713603062432,-500.0,0.00015616,2]
[323028678,1713603062441,-500.0,0.00015616,2]
[323028679,1713603062451,-958.42,0.00015616,2]
[323028680,1713603062460,-526.74,0.00015616,2]
[323028681,1713603062470,-4704.64,0.00015616,2]
[323028682,1713603062480,-702.38,0.00015616,2]
[323028683,1713603062489,-719.39,0.00015616,2]
[323028684,1713603062498,-2323.83,0.00015616,2]
[323028685,1713603062508,-635.01,0.00015616,2]
[323028686,1713603062517,-805.0,0.00015616,2]
[323028687,1713603062526,-1313.93,0.00015616,2]
[323028688,1713603062536,-500.0,0.00015616,2]
[323028689,1713603062545,-939.83,0.00015616,2]
[323028690,1713603062556,-500.0,0.00015616,2]
[323028691,1713603062566,-500.0,0.00015616,2]
[323028692,1713603062575,-500.0,0.00015616,2]
[323028693,1713603062585,-805.34,0.00015616,2]
[323028694,1713603062594,-223.30498,0.00015616,2]
[323028695,1713603062603,-223.30498,0.00015616,2]
[323028696,1713603062613,-595.82,0.00015616,2]
[323028697,1713603062623,-17610.62,0.00015616,2]
[323028698,1713603062635,-223.30498,0.00015616,2]
[323028699,1713603062645,-223.30498,0.00015616,2]
[323028700,1713603062655,-14404.44,0.00015616,2]
[323028701,1713603062666,-500.0,0.00015616,2]
[323028702,1713603062675,-500.0,0.00015616,2]
[323028703,1713603062685,-556.7,0.00015616,2]
[323028704,1713603062694,-1161.15,0.00015616,2]
[323028705,1713603062705,-500.0,0.00015616,2]
[323028706,1713603062715,-500.0,0.00015616,2]
[323028707,1713603062724,-500.0,0.00015616,2]
[323028708,1713603062734,-957.16,0.00015616,2]
[323028709,1713603062743,-519.09,0.00015616,2]
[323028710,1713603062753,-1066.64,0.00015616,2]
[323028711,1713603062762,-500.0,0.00015616,2]
[323028712,1713603062772,-2579.95,0.00015616,2]
[323028713,1713603062781,-500.0,0.00015616,2]
[323028714,1713603062791,-500.0,0.00015616,2]
[323028715,1713603062803,-500.0,0.00015616,2]
[323028716,1713603062812,-1645.83,0.00015616,2]
[323028717,1713603062822,-500.0,0.00015616,2]
[323028718,1713603062831,-674.74,0.00015616,2]
[323028719,1713603062840,-500.0,0.00015616,2]
[323028720,1713603062849,-500.0,0.00015616,2]
[323028721,1713603062859,-1251.61,0.00015616,2]
[323028722,1713603062868,-569.44,0.00015616,2]
[323028723,1713603062878,-500.0,0.00015616,2]
[323028724,1713603062887,-151.0,0.00015616,2]
[323028725,1713603062897,-500.0,0.00015616,2]
[323028726,1713603062906,-1215.63,0.00015616,2]
[323028727,1713603062915,-686.63,0.00015616,2]
[323028728,1713603062924,-774.37,0.00015616,2]
[323028729,1713603062933,-500.0,0.00015616,2]
[323028730,1713603062944,-500.0,0.00015616,2]
[323028731,1713603062954,-500.0,0.00015616,2]
[323028732,1713603062965,-1872.67,0.00015616,2]
[323028733,1713603062975,-500.0,0.00015616,2]
[323028734,1713603062985,-500.0,0.00015616,2]
[323028735,1713603062997,-1738.96,0.00015616,2]
[323028736,1713603063008,-1234.92,0.00015616,2]
[323028737,1713603063018,-500.0,0.00015616,2]
[323028738,1713603063028,-1103.38,0.00015616,2]
[323028739,1713603063039,-497.10476252,0.00015616,2]
[323028740,1713603063052,-500.0,0.00015616,2]
[323028741,1713603063062,-500.0,0.00015616,2]
[323028742,1713603063077,-540.91,0.00015616,2]
[323028743,1713603063088,-4454.84,0.00015616,2]
[323028744,1713603063099,-1917.37,0.00015616,2]
[323028745,1713603063109,-500.0,0.00015616,2]
[323028746,1713603063120,-798.54,0.00015616,2]
[323028747,1713603063131,-500.0,0.00015616,2]
[323028748,1713603063141,-674.6,0.00015616,2]
[323028749,1713603063151,-500.0,0.00015616,2]
[323028750,1713603063162,-500.0,0.00015616,2]
[323028751,1713603063173,-8079.94,0.00015616,2]
[323028752,1713603063184,-3823.01,0.00015616,2]
[323028753,1713603063195,-1011.8,0.00015616,2]
[323028754,1713603063205,-500.0,0.00015616,2]
[323028755,1713603063216,-649.35,0.00015616,2]
[323028756,1713603063226,-878.26,0.00015616,2]
[323028757,1713603063237,-1687.04,0.00015616,2]
[323028758,1713603063248,-1038.56,0.00015616,2]
[323028759,1713603063258,-500.0,0.00015616,2]
[323028760,1713603063269,-2718.9,0.00015616,2]
[323028761,1713603063279,-500.0,0.00015616,2]
[323028762,1713603063290,-500.0,0.00015616,2]
[323028763,1713603063304,-806.64,0.00015616,2]
[323028764,1713603063314,-500.0,0.00015616,2]
[323028765,1713603063323,-500.0,0.00015616,2]
[323028766,1713603063334,-784.16,0.00015616,2]
[323028767,1713603063345,-500.0,0.00015616,2]
[323028768,1713603063355,-500.0,0.00015616,2]
[323028769,1713603063366,-500.0,0.00015616,2]
[323028770,1713603063376,-500.0,0.00015616,2]
[323028771,1713603063386,-2338.74,0.00015616,2]